Cogmind - Beta 12 @@@ ROGUE MODE // 2024.01.27 @ 20:43:35 Player: Jospehas Result: Destroyed by H-61 Shepherd with Heavy Assault Cannon Performance ------------- Evolutions (2) 1000 Regions Visited (6) 1200 Robots Destroyed (39) 195 Value Destroyed (1359) 1359 Prototype IDs (1) 20 Alien Tech Used (0) 0 Bonus (0) 0 TOTAL SCORE: 3774 Bonus ------- None Cogmind --------- Core Integrity 0/550 Matter 277/300 Energy 160/160 System Corruption 3% Temperature Cool (0) Movement Core (300) Ox5 Location -8/Materials Parts ------- > --- POWER (1) -------- Light Nuclear Core > --- PROPULSION (3) --- (None) > --- UTILITY (4) ------ Improved Heat Sink Medium Storage Unit Terrain Scan Processor > --- WEAPON (3) ------- Mining Claw > --- INVENTORY (10) --- Light Nuclear Core Improved Aluminum Leg Compact Matter Pod (150) Peak State ------------ > --- POWER ------------ Light Angular Momentum Engine > --- PROPULSION ------- Aluminum Leg Aluminum Leg Carbon-fiber Leg > --- UTILITY ---------- Improved Heat Sink Medium Storage Unit Terrain Scan Processor Improved Light Armor Plating > --- WEAPON ----------- Heavy Particle Cannon Mining Claw > --- INVENTORY -------- Light Nuclear Core Light Nuclear Core Improved Aluminum Leg Improved Heat Sink Compact Matter Pod [Rating: 24] Favorites ----------- Power Heavy Ion Engine Engine Heavy Ion Engine Power Core Light Nuclear Core Propulsion Light Treads Treads Light Treads Leg Aluminum Leg Utility Improved Targeting Computer Device Cooling System Storage Large Storage Unit Processor Improved Targeting Computer Protection Light Armor Plating Weapon Shotgun Energy Gun Medium Laser Energy Cannon Heavy Particle Cannon Ballistic Gun Shotgun Launcher Grenade Launcher Impact Weapon Hammer Slashing Weapon Mining Claw Build | -11 -10 -9 -9 -9 -8 -8 ------- Run | Jun Mat Mat Min Exi Min Mat Slots Evolved 4 | . . 2 . . . 2 Power . | . . . . . . . Propulsion 1 | . . . . . . 1 Utility 2 | . . 2 . . . . Weapon 1 | . . . . . . 1 Parts Attached 54 | 4 8 6 . . 12 24 Power 8 | 1 . 2 . . 2 3 Engine 6 | 1 . 2 . . 2 1 Core 2 | . . . . . . 2 Reactor . | . . . . . . . Propulsion 11 | . 2 . . . 1 8 Treads 3 | . 2 . . . . 1 Leg 8 | . . . . . 1 7 Wheel . | . . . . . . . Hover . | . . . . . . . Flight . | . . . . . . . Utility 13 | 1 4 2 . . 1 5 Device 4 | . 1 1 . . . 2 Storage 5 | 1 2 . . . 1 1 Processor 2 | . 1 . . . . 1 Hackware . | . . . . . . . Protection 2 | . . 1 . . . 1 Artifact . | . . . . . . . Weapon 22 | 2 2 2 . . 8 8 Energy Gun 2 | 2 . . . . . . Energy Cannon 4 | . . . . . . 4 Ballistic Gun 12 | . 2 1 . . 6 3 Ballistic Cannon . | . . . . . . . Launcher 1 | . . . . . 1 . Special Weapon . | . . . . . . . Impact Weapon 1 | . . . . . 1 . Slashing Weapon 2 | . . 1 . . . 1 Piercing Weapon . | . . . . . . . Special Melee Weapon . | . . . . . . . Unidentified Prototypes 1 | . . 1 . . . . Parts Lost 22 | . . . . . 9 13 Power 4 | . . . . . 2 2 Propulsion 6 | . . . . . 2 4 Utility 5 | . . . . . 3 2 Weapon 7 | . . . . . 2 5 Highest Loss Streak 6 | . . . . . 3 6 To Critical Strikes . | . . . . . . . Average Slot Usage (%) 84 | . 98 100 100 100 66 61 Engine 10 | . 14 11 11 11 9 6 Treads 15 | . 27 22 22 22 7 1 Leg 3 | . . . . . 1 15 Device 7 | . 4 11 11 11 4 5 Storage 10 | . 14 11 11 11 10 7 Processor 8 | . 8 11 11 11 9 1 Protection 6 | . . 11 11 11 4 4 Energy Gun 1 | . 11 . . . . . Energy Cannon 1 | . . . . . . 6 Ballistic Gun 15 | . 16 21 22 22 13 3 Impact Weapon 1 | . . . . . 4 . Slashing Weapon 1 | . . . . . . 6 Naked Turns . | . . . . . . . Heaviest Build 39 | 13 31 39 39 39 39 34 Greatest Support 40 | 3 40 40 40 40 40 35 Greatest Overweight (x) 9 | 4 4 . . . 9 5 Average Overweight (x) . | 1 . . . . 1 . Largest Inventory Capacity 15 | 8 15 15 15 15 15 10 Average Capacity 12 | 7 8 15 15 15 14 9 Most Carried 14 | 7 10 9 9 11 14 7 Average Carried 7 | 5 6 6 9 9 9 3 Final Capacity 15 | 8 15 15 15 15 5 10 Final Carried 11 | 6 8 9 9 11 5 3 Class Distribution -------------------- 89% | Mutant 9% | Scavenger-Mutant Dominant Class ---------------- Mutant | -10/Materials Mutant | -9/Materials Mutant | -9/Mines Mutant | -9/Exiles Mutant | -8/Mines Scavenger-Mutant | -8/Materials Resources | -11 -10 -9 -9 -9 -8 -8 ----------- Run | Jun Mat Mat Min Exi Min Mat Matter Collected 1442 | 240 92 172 . . 471 467 Remotely . | . . . . . . . Salvage Created 1596 | 96 81 223 . . 644 552 Parts 62 | 5 2 11 . . 28 16 Haulers Intercepted . | . . . . . . . Recyclers Shooed 3 | . . . . . 3 . Parts Field Recycled . | . . . . . . . Retrieved Matter . | . . . . . . . Parts Self-Destructed . | . . . . . . . Prevented . | . . . . . . . Kills | -11 -10 -9 -9 -9 -8 -8 ------- Run | Jun Mat Mat Min Exi Min Mat Combat Hostiles Destroyed 33 | . 2 6 . . 16 9 Melee 2 | . . . . . . 2 Guns 22 | . 2 6 . . 13 1 Cannons 6 | . . . . . . 6 AOE 2 | . . . . . 2 . Classes Destroyed 7 | 1 1 . . . 3 2 Worker 1 | . . . . . 1 . Builder 1 | . . . . . . 1 Recycler 4 | 1 . . . . 2 1 Swarmer 4 | . . . . . 4 . Grunt 26 | . 2 6 . . 11 7 Duelist 2 | . . . . . 1 1 Hunter 1 | . . . . . . 1 Best Kill Streak 4 | 1 1 2 . . 4 2 Combat Bots Only 4 | . 1 2 . . 4 2 Max Kills in Single Turn 1 | 1 1 1 . . 1 1 Gunslinging . | . . . . . . . Exploded 1 | . . . . . 1 . Melee 1 | . . . . . . 1 Uniques/NPCs Destroyed . | . . . . . . . Combat | -11 -10 -9 -9 -9 -8 -8 -------- Run | Jun Mat Mat Min Exi Min Mat Damage Taken 3490 | . 222 125 . . 1155 1988 Core 838 | . 37 21 . . 227 553 Absorbed by Shields . | . . . . . . . Core Remaining (%) 74 | 100 85 . . . 38 . Volleys Fired 130 | 2 11 14 . . 57 46 Largest 3 | 2 2 2 . . 2 3 Hottest 173 | 90 90 46 . . 53 173 Shots Fired 223 | 4 22 28 . . 89 80 Gun 164 | 4 22 28 . . 79 31 Cannon 49 | . . . . . . 49 Launcher 10 | . . . . . 10 . Special . | . . . . . . . Kinetic 146 | . 8 28 . . 79 31 Thermal 67 | 4 14 . . . . 49 Explosive 10 | . . . . . 10 . Electromagnetic . | . . . . . . . Robot Hit Streak 11 | 2 5 7 . . 11 8 Robot Miss Streak 4 | 1 4 2 . . 4 3 Penetration Max . | . . . . . . . Secondary Targets 4 | . . 2 . . 1 1 Max Gunslinging Chain 1 | . . 1 . . 1 1 Shots Hit Robots 181 | 2 15 21 . . 80 63 Core Hits 95 | 2 6 14 . . 50 23 Critical Kills . | . . . . . . . Critical Parts Destroyed 2 | . . . . . 2 . Critical Strikes 3 | . 1 . . . 2 . Burn 1 | . 1 . . . . . Smash 2 | . . . . . 2 . Melee Attacks 25 | . . 3 . . 10 12 Impact 10 | . . . . . 10 . Slashing 15 | . . 3 . . . 12 Piercing . | . . . . . . . Sneak Attacks 1 | . . . . . . 1 Combat Hostiles . | . . . . . . . Follow-up Attacks . | . . . . . . . Damage Inflicted 3586 | 22 181 291 . . 1763 1329 Guns 1701 | 22 181 291 . . 986 221 Cannons 900 | . . . . . . 900 Explosions 536 | . . . . . 536 . Melee 449 | . . . . . 241 208 Ramming . | . . . . . . . Kinetic 1577 | . 79 291 . . 986 221 Thermal 1024 | 22 102 . . . . 900 Explosive 536 | . . . . . 536 . Electromagnetic . | . . . . . . . Impact 241 | . . . . . 241 . Slashing 208 | . . . . . . 208 Piercing . | . . . . . . . Highest Corruption 3 | . . . . . . 3 Average Corruption 2 | . . . . . . 2 Corruption Purged . | . . . . . . . Corruption Blocked . | . . . . . . . Effects 5 | . . . . . . 5 Message Errors 1 | . . . . . . 1 Matter Fused 1 | . . . . . . 1 Parts Fused 1 | . . . . . . 1 Data Loss (minor) 2 | . . . . . . 2 Overload Shots . | . . . . . . . Overflow Damage 52 | . . . . . 43 9 Projectiles 5 | . . . . . . 5 Explosions 5 | . . . . . 5 . Melee 42 | . . . . . 38 4 Knockbacks . | . . . . . . . Impact . | . . . . . . . Kinetic . | . . . . . . . Secondary . | . . . . . . . Self-Inflicted Damage 24 | . . . . . 24 . Shots 1 | . . . . . 1 . Rammed . | . . . . . . . Targets Rammed . | . . . . . . . Kicked . | . . . . . . . Crushed . | . . . . . . . Highest Temperature 503 | 30 1 . . . 12 503 Average Temperature 179 | 15 1 . . . 4 201 Received Heat Transfer 1527 | . 123 72 . . 630 702 Effects 6 | . . . . . . 6 Shutdowns 2 | . . . . . . 2 Interference 2 | . . . . . . 2 Matter Decay 1 | . . . . . . 1 Damage (core) 1 | . . . . . . 1 Siege Activations . | . . . . . . . Robots Corrupted . | . . . . . . . Combat Hostiles . | . . . . . . . Parts Fried 1 | . . . . . 1 . Impact Corruptions 2 | . . . . . 2 . Robots Melted . | . . . . . . . Combat Hostiles . | . . . . . . . Parts Melted . | . . . . . . . Heat Transferred 1741 | 62 347 . . . . 1332 Parts Sabotaged . | . . . . . . . Parts Stolen . | . . . . . . . Parts Stripped . | . . . . . . . Power Chain Reactions . | . . . . . . . Missiles Intercepted . | . . . . . . . Alert | -11 -10 -9 -9 -9 -8 -8 ------- Run | Jun Mat Mat Min Exi Min Mat Peak Influence 232 | 5 43 191 11 . 232 147 Initial 12 | . 3 12 11 . . 9 Average 58 | 2 26 51 11 . 104 48 Maximum Alert Level 1 | . . . . . 1 . Low Security (%) 98 | 100 100 100 100 . 93 100 Level 1 1 | . . . . . 6 . Level 2 . | . . . . . . . Level 3 . | . . . . . . . Level 4 . | . . . . . . . Level 5 . | . . . . . . . High Security . | . . . . . . . Max Security . | . . . . . . . Squads Dispatched 6 | . 1 3 . . 1 1 Investigation 4 | . 1 2 . . . 1 Extermination . | . . . . . . . Reinforcement 2 | . . 1 . . 1 . Assault . | . . . . . . . Garrison . | . . . . . . . Intercept . | . . . . . . . Searches Triggered . | . . . . . . . Construction Impeded 1 | . . . . . 1 . Haulers Reinforced . | . . . . . . . Active Scanning Responses . | . . . . . . . Cargo Convoy Interrupts . | . . . . . . . Stealth | -11 -10 -9 -9 -9 -8 -8 --------- Run | Jun Mat Mat Min Exi Min Mat Distress Signals 3 | . 1 2 . . . . Communications Jammed . | . . . . . . . Distress Signals . | . . . . . . . Times Spotted 46 | . 5 11 . . 17 13 Peak Tracking Total 4 | . 3 3 . . 4 3 Tactical Retreats 4 | . . 2 . . 1 1 Traps | -11 -10 -9 -9 -9 -8 -8 ------- Run | Jun Mat Mat Min Exi Min Mat Traps Triggered 4 | . 1 1 . . . 2 Indirectly . | . . . . . . . Trap Hack Attempts . | . . . . . . . Triggered . | . . . . . . . Disarmed . | . . . . . . . Reprogrammed . | . . . . . . . Reused . | . . . . . . . Traps Extracted . | . . . . . . . Installed . | . . . . . . . Triggered . | . . . . . . . Machines | -11 -10 -9 -9 -9 -8 -8 ---------- Run | Jun Mat Mat Min Exi Min Mat Machines Disabled . | . . . . . . . Max in Single Turn . | . . . . . . . Machines Repaired . | . . . . . . . Machines Sabotaged . | . . . . . . . Overloaded Fab Kills . | . . . . . . . Hacking | -11 -10 -9 -9 -9 -8 -8 --------- Run | Jun Mat Mat Min Exi Min Mat Machines Accessed 12 | . 1 2 . 4 1 4 Terminals 7 | . 1 2 . . 1 3 Fabricators . | . . . . . . . Repair Stations . | . . . . . . . Recycling Units 1 | . . . . . . 1 Scanalyzers . | . . . . . . . Garrison Access . | . . . . . . . Total Hacks 40 | . 2 7 . 21 4 6 Successful 31 | . 2 4 . 21 2 2 Failed 9 | . . 3 . . 2 4 Catastrophic 2 | . . 1 . . 1 . Database Lockouts . | . . . . . . . Manual 2 | . . . . 2 . . Terminals 18 | . 2 7 . . 4 5 Fabricators . | . . . . . . . Repair Stations . | . . . . . . . Recycling Units 1 | . . . . . . 1 Scanalyzers . | . . . . . . . Garrison Access . | . . . . . . . Terminal Hacks 31 | . 2 4 . 21 2 2 Record 24 | . . 3 . 21 . . Alert Level 1 | . . . . . 1 . Locate Traps 3 | . . 1 . . . 2 Dispatch Records 2 | . 1 . . . 1 . Zone Layout 1 | . 1 . . . . . Fabricator Hacks . | . . . . . . . Repair Station Hacks . | . . . . . . . Recycling Unit Hacks . | . . . . . . . Scanalyzer . | . . . . . . . Garrison Access Hacks . | . . . . . . . Unauthorized Hacks . | . . . . . . . Terminals . | . . . . . . . Fabricators . | . . . . . . . Repair Stations . | . . . . . . . Recycling Units . | . . . . . . . Scanalyzers . | . . . . . . . Garrison Access . | . . . . . . . Data Cores Recovered . | . . . . . . . Used . | . . . . . . . Hacking Detections 4 | . . 2 . . 1 1 Full Trace Events 3 | . . 1 . . 1 1 Feedback Events . | . . . . . . . Feedback Blocked . | . . . . . . . Robot Schematics Acquired . | . . . . . . . Robots Built . | . . . . . . . Authchips . | . . . . . . . Time . | . . . . . . . Total Robot Build Rating . | . . . . . . . Part Schematics Acquired . | . . . . . . . Parts Built . | . . . . . . . Authchips . | . . . . . . . Time . | . . . . . . . Total Part Build Rating . | . . . . . . . Parts Repaired . | . . . . . . . Time . | . . . . . . . Parts Recycled . | . . . . . . . Recycled Matter . | . . . . . . . Retrieved Matter . | . . . . . . . Retrieved Components . | . . . . . . . Parts Scanalyzed . | . . . . . . . Part Schematics Acquired . | . . . . . . . Parts Damaged . | . . . . . . . Bothacking | -11 -10 -9 -9 -9 -8 -8 ------------ Run | Jun Mat Mat Min Exi Min Mat Used RIF Installer . | . . . . . . . Robots Hacked . | . . . . . . . Non-combat . | . . . . . . . Combat . | . . . . . . . Robot Hacks Applied . | . . . . . . . Relay Couplers Released . | . . . . . . . Fabnet Peak Effective % . | . . . . . . . Robots Rewired . | . . . . . . . Allies Hacked . | . . . . . . . Hacks Repelled . | . . . . . . . Allies | -11 -10 -9 -9 -9 -8 -8 -------- Run | Jun Mat Mat Min Exi Min Mat Total Allies . | . . . . . . . Largest Group . | . . . . . . . Highest-Rated Group . | . . . . . . . Highest-Rated Ally . | . . . . . . . Total Orders . | . . . . . . . Ally Attacks . | . . . . . . . Total Damage . | . . . . . . . Kills . | . . . . . . . Allies Corrupted . | . . . . . . . Allies Melted . | . . . . . . . Intel | -11 -10 -9 -9 -9 -8 -8 ------- Run | Jun Mat Mat Min Exi Min Mat Robot Analysis Total . | . . . . . . . Derelict Logs Recovered . | . . . . . . . Drone Launches . | . . . . . . . Drone Recoveries . | . . . . . . . Exploration | -11 -10 -9 -9 -9 -8 -8 ------------- Run | Jun Mat Mat Min Exi Min Mat Turns Passed 4155 | 97 446 752 237 855 995 773 Spaces Moved 1928 | 61 242 309 134 530 323 329 Core 101 | 61 1 . . . 27 12 Treads 1494 | . 241 309 134 530 220 60 Legs 333 | . . . . . 76 257 Wheels . | . . . . . . . Hover . | . . . . . . . Flight . | . . . . . . . Fastest Speed 50 | 50 160 160 160 160 120 120 Average Speed 167 | 127 160 160 160 160 231 138 Slowest Speed 500 | 250 250 160 160 160 500 300 Overloaded Moves . | . . . . . . . Propulsion Burnouts . | . . . . . . . Robots Hopped . | . . . . . . . Cave-ins Triggered . | . . . . . . . Exploration Rate (%) 39 | 6 36 29 21 90 73 24 Regions Visited 6 Branch Regions 3 Pre-discovered Areas 1 | . . . . 1 . . Known Exits Taken . | . . . . . . . Unknown Exits Taken 6 | 1 1 1 1 1 1 . Scrap Searched 1 | . . . . . 1 . Spaces Dug . | . . . . . . . Terrain Destroyed 48 | . . . . . 37 11 Melee . | . . . . . . . Projectile 11 | . . . . . . 11 AOE 37 | . . . . . 37 . Terrain Rammed . | . . . . . . . Walls Destroyed . | . . . . . . . Machines Disabled . | . . . . . . . Actions | -11 -10 -9 -9 -9 -8 -8 --------- Run | Jun Mat Mat Min Exi Min Mat Total 2616 | 77 281 534 157 537 473 557 Wait 391 | . . 195 24 5 54 113 Move 1922 | 60 241 308 133 529 322 329 Hop . | . . . . . . . Pick Up 55 | 10 12 4 . 2 5 22 Fast Attach 2 | 1 1 . . . . . Attach 46 | 3 5 5 . . 11 22 Detach 13 | . 1 3 . . 5 4 Swap 6 | . 2 1 . . 1 2 Drop 25 | 1 8 1 . . 8 7 Fire 130 | 2 11 14 . . 57 46 Melee 25 | . . 3 . . 10 12 Ram . | . . . . . . . Kick . | . . . . . . . Crush . | . . . . . . . Escape Stasis . | . . . . . . . Rewire 1 | . . . . 1 . . Trap . | . . . . . . . Miscellaneous . | . . . . . . . Route ------- -11/Junkyard -10/Materials (discovered 2 exits: *Mat / [*Min]) -9/Materials (discovered 2 exits: [*Min] / [*Sto]) -9/Mines -9/Exiles -8/Mines (discovered 2 exits: *Mat x2) -8/Materials History --------- Turn | Location | Event 11 | -11/Junkyard | Discovered new exit (range 15) 98 | -11/Junkyard | Entered Materials 306 | -10/Materials | Build established: Mutant 453 | -10/Materials | Discovered new exit (range 3) 462 | -10/Materials | Discovered new exit (range 15) 544 | -10/Materials | Entered another Materials area 544 | -9/Materials | Evolved 2 slots: Utility x2 1024 | -9/Materials | Discovered new exit (range 6) 1092 | -9/Materials | Discovered new exit (range 15) 1296 | -9/Materials | Entered Mines 1450 | -9/Mines | Deemed a non-threat by the Exiles lab entrance 1450 | -9/Mines | Discovered new exit (range 5) 1494 | -9/Mines | Assembled infested the area 1533 | -9/Mines | Entered Exiles 1577 | -9/Exiles | Met 8R-AWN 1618 | -9/Exiles | Met EX-HEX 1696 | -9/Exiles | Met EX-BIN 1895 | -9/Exiles | Met EX-DEC 1906 | -9/Exiles | Learned location of Zion (-7) 2019 | -9/Exiles | Visited The Gauntlet 2293 | -9/Exiles | Discovered new exit (range 15) 2388 | -9/Exiles | Entered Mines 2422 | -8/Mines | Discovered new exit (range 10) 3246 | -8/Mines | Core integrity fell below 50% 3288 | -8/Mines | Lost 3 parts (1p1u1w) 3368 | -8/Mines | Discovered new exit (range 12) 3383 | -8/Mines | Entered Materials 3383 | -8/Materials | Evolved 2 slots: Propulsion x1, Weapon x1 3617 | -8/Materials | Core integrity fell below 50% 3619 | -8/Materials | Lost 4 parts (1p1n2w) 3872 | -8/Materials | Core integrity fell below 20% 4052 | -8/Materials | Build established: Scavenger-Mutant 4156 | -8/Materials | Destroyed by H-61 Shepherd with Heavy Assault Cannon Last Messages --------------- 04131_ Critical hit (Blast). 04133_ Penetrated by Slug. 04133_ Knocked back. 04137_ U-05 Engineer builds a Wall. 04140_ Carbon-fiber Leg destroyed. 04142_ Aluminum Leg destroyed. 04143_ U-05 Engineer builds a Wall. 04144_ Penetrated by Slug. 04144_ Hvy. Particle Cannon destroyed. 04145_ Sneak attack on U-05 Engineer. 04145_ Destroyed Lgt. Ion Engine. 04148_ U-05 Engineer destroyed. 04148_ Aluminum Leg destroyed. 04148_ Imp. Light Armor Plating destroyed. 04148_ Knocked back. 04151_ Acquired 6 matter. 04152_ U-05 Engineer builds a Wall. 04154_ LTPNDREJNRPP1S&Q R&25EMTUW>BB S 04154_ K-01 Serf collects debris. 04154_ Acquired 2 matter. Map ----- +----------------------------------------------------+ | ?????????????????????????????????????????????????? | | ?????????????????????????????????????????????????? | | ?????????????????????????????????????????????????? | | ?????????????????????????????????????????????????? | | ?????????????????????????????????????????????????? | | ?????????????????????????????????????????????????? | | ?????????????????????????????????????????????????? | | ?????????????????????????????????????????????????? | | ?????????????????????????????????????????????????? | | ?????????????????????????????????????????????????? | | ?????????????????????????????????????????????????? | | ?????????????????????????????????????????????????? | | ?????????????????????????????????????????????????? | | ??????????#######????????????????????????????????? | | ????????? ##########???????????????????????? | | ????????? # #???????????????????????? | | ???????? #""""" #???????????????????????? | | ???????#""" #""""" #???????????????????????? | | ???????#""" #""""" #???????????????????????? | | ???????#""" #""""" #???????????????????????? | | ???????#""" #""""" #???????????????????????? | | ???????#""" #""""" #???????????????????????? | | ???????# #""""" #???????????????????????? | | ???????####+##### ##??+####?????#?????????? | | ????????# ##########/%###k##### #????????? | | ######### u@ |%= #????????? | | % = H #????????? | | #+####### % % % #????????? | | #?# u##########+#### ##### #????????? | | """ #?# ##???????? ! ?? #??????+###????????? | | """ #?# ######???? # #??????????????????? | | """ ### # #???? !# #??????????????????? | | """ #"" # #???? # #??????????????????? | | #"T % #% #???? ! # #??????????????????? | | #####?#"" %+ #???? ! #?#??????????????????? | | ??????### # #??? ! #????????????????????? | | ????????# ######??? ! #????????????????????? | | ????????# ###??????####+##????????????????????? | | ###?????# #???????????????????????????????????? | | !##?????# ##+###?????????????????????????????????? | | !#?????# # #?????????????????????????????????? | | #?????# # #?????????????????????????????????? | | ####### # #?????????????????????????????????? | | # #?????????????????????????????????? | | + #?????????????????????????????????? | | % %# #?????????????????????????????????? | | ########### #?????????????????????????????????? | | #######???# #?????????????????????????????????? | | #???# #?????????????????????????????????? | | " ""#???######?????????????????????????????????? | +----------------------------------------------------+ Best States ------------- Heat Dissipation 50 Energy Generation 18 Energy Capacity 280 Matter Stores 300 Matter Capacity 300 Sight Range 16 Terrain Scan Density 85 Armor Coverage 150 Evasion (%) 55 Targeting Accuracy 6 Recoil Reduction 2 Item Schematics ----------------- None Robot Schematics ------------------ None Fabricated ------------ Nothing Alien Tech Used ----------------- None Achievements -------------- None Challenges ------------ None Game ------ Seed SmartbombRemoteFlamer Manual? 0 Play Time 00:37:47 Cumulative 2.8 hours Start 2024.01.27 @ 20:06:44 End 2024.01.27 @ 20:43:35 Sessions 1 Manual Loads 0 Difficulty Rogue Special Mode None Game No. 5 Rogue 4 Adventurer 1 Explorer 0 Win Type - Total 0 Types 0/0/0/0/0/0/0/0/0 Lore% 5 Gallery% 7 Achievement% 100 Wizard Run 0 Options --------- ASCII 0 Keyboard 1 Movement Numpad Keybinds 0 Fullscreen 2 Font 18/SmallcapsGlow Map View 76x50 Tactical HUD 1 Map Filters NONE Filters NONE Steam 1 RUN: eacb391b-8da7-4de8-9865-5a0ea3cf52e2